Cogmind - Beta 12 @@@ ROGUE MODE // 2024.02.12 @ 02:43:04 Player: Krieg Result: Destroyed by Y-45 Defender with Heavy Assault Rifle Performance ------------- Evolutions (1) 500 Regions Visited (2) 400 Robots Destroyed (8) 40 Value Destroyed (177) 177 Prototype IDs (0) 0 Alien Tech Used (0) 0 Bonus (0) 0 TOTAL SCORE: 1117 Bonus ------- None Cogmind --------- Core Integrity 0/400 Matter 106/300 Energy 99/100 System Corruption 0% Temperature Cool (18) Movement Core (50) Location -9/Materials Parts ------- > --- POWER (1) -------- (None) > --- PROPULSION (4) --- (None) > --- UTILITY (2) ------ (None) > --- WEAPON (2) ------- (None) > --- INVENTORY (5) ---- Light Ion Engine Light Treads Medium Laser Peak State ------------ > --- POWER ------------ Light Ion Engine > --- PROPULSION ------- Wheel Wheel > --- UTILITY ---------- Small Storage Unit > --- WEAPON ----------- Medium Laser Assault Rifle > --- INVENTORY -------- Light Treads Light Treads [Rating: 6] Favorites ----------- Power Light Ion Engine Engine Light Ion Engine Propulsion Wheel Treads Light Treads Wheel Wheel Utility Small Storage Unit Storage Small Storage Unit Weapon Light Assault Rifle Energy Gun Medium Laser Ballistic Gun Light Assault Rifle Launcher Grenade Launcher Build | -11 -10 -9 ------- Run | Jun Mat Mat Slots Evolved 2 | . . 2 Power . | . . . Propulsion 2 | . . 2 Utility . | . . . Weapon . | . . . Parts Attached 11 | 6 1 4 Power 1 | 1 . . Engine 1 | 1 . . Core . | . . . Reactor . | . . . Propulsion 5 | 2 . 3 Treads 2 | . . 2 Leg . | . . . Wheel 3 | 2 . 1 Hover . | . . . Flight . | . . . Utility 1 | 1 . . Device . | . . . Storage 1 | 1 . . Processor . | . . . Hackware . | . . . Protection . | . . . Artifact . | . . . Weapon 4 | 2 1 1 Energy Gun 1 | 1 . . Energy Cannon . | . . . Ballistic Gun 2 | 1 . 1 Ballistic Cannon . | . . . Launcher 1 | . 1 . Special Weapon . | . . . Impact Weapon . | . . . Slashing Weapon . | . . . Piercing Weapon . | . . . Special Melee Weapon . | . . . Unidentified Prototypes . | . . . Parts Lost 3 | . 1 2 Power . | . . . Propulsion 2 | . . 2 Utility . | . . . Weapon 1 | . 1 . Highest Loss Streak 2 | . 1 2 To Critical Strikes . | . . . Average Slot Usage (%) 45 | . 64 35 Engine 3 | . 8 . Treads 6 | . . 10 Wheel 15 | . 22 12 Storage 9 | . 14 6 Energy Gun 2 | . 6 . Ballistic Gun 7 | . 8 6 Naked Turns 73 | . . 73 Heaviest Build 13 | 12 13 6 Greatest Support 40 | 20 20 40 Greatest Overweight (x) . | . . . Average Overweight (x) . | . . . Largest Inventory Capacity 8 | 8 8 8 Average Capacity 7 | 7 8 6 Most Carried 7 | 4 7 6 Average Carried 3 | 2 6 3 Final Capacity 8 | 8 8 5 Final Carried 7 | 4 7 3 Class Distribution -------------------- 100% | Mutant Dominant Class ---------------- Mutant | -10/Materials Mutant | -9/Materials Resources | -11 -10 -9 ----------- Run | Jun Mat Mat Matter Collected 173 | 173 . . Remotely . | . . . Salvage Created 81 | . 27 54 Parts 10 | . 4 6 Haulers Intercepted . | . . . Recyclers Shooed . | . . . Parts Field Recycled . | . . . Retrieved Matter . | . . . Parts Self-Destructed . | . . . Prevented . | . . . Kills | -11 -10 -9 ------- Run | Jun Mat Mat Combat Hostiles Destroyed 4 | . 4 . AOE 4 | . 4 . Classes Destroyed 6 | . 3 3 Builder 1 | . . 1 Recycler 1 | . . 1 Operator 1 | . . 1 Watcher 1 | . 1 . Swarmer 3 | . 3 . Grunt 1 | . 1 . Best Kill Streak 5 | . 5 3 Combat Bots Only 4 | . 4 . Max Kills in Single Turn 3 | . 3 3 Gunslinging . | . . . Exploded 3 | . 3 . Melee . | . . . Uniques/NPCs Destroyed . | . . . Combat | -11 -10 -9 -------- Run | Jun Mat Mat Damage Taken 955 | . 311 644 Core 522 | . 120 402 Absorbed by Shields . | . . . Core Remaining (%) 76 | 100 52 . Volleys Fired 12 | . 9 3 Largest 2 | . 2 1 Hottest 70 | . 70 20 Shots Fired 15 | . 12 3 Gun 9 | . 6 3 Cannon . | . . . Launcher 6 | . 6 . Special . | . . . Kinetic 6 | . 3 3 Thermal 3 | . 3 . Explosive 6 | . 6 . Electromagnetic . | . . . Robot Hit Streak 2 | . 2 . Robot Miss Streak 4 | . 4 3 Penetration Max . | . . . Secondary Targets . | . . . Shots Hit Robots 4 | . 4 . Core Hits 10 | . 8 2 Critical Kills . | . . . Critical Parts Destroyed . | . . . Critical Strikes . | . . . Melee Attacks . | . . . Impact . | . . . Slashing . | . . . Piercing . | . . . Sneak Attacks . | . . . Combat Hostiles . | . . . Follow-up Attacks . | . . . Damage Inflicted 666 | . 481 185 Guns 27 | . 27 . Cannons . | . . . Explosions 639 | . 454 185 Melee . | . . . Ramming . | . . . Kinetic 15 | . 15 . Thermal 343 | . 158 185 Explosive 308 | . 308 . Electromagnetic . | . . . Impact . | . . . Slashing . | . . . Piercing . | . . . Highest Corruption . | . . . Average Corruption . | . . . Corruption Purged . | . . . Corruption Blocked . | . . . Overload Shots . | . . . Overflow Damage 31 | . . 31 Projectiles . | . . . Explosions 31 | . . 31 Melee . | . . . Knockbacks . | . . . Impact . | . . . Kinetic . | . . . Secondary . | . . . Self-Inflicted Damage 211 | . 130 81 Shots 5 | . 4 1 Rammed . | . . . Targets Rammed . | . . . Kicked . | . . . Crushed . | . . . Highest Temperature 18 | . 18 . Average Temperature 6 | . 6 . Received Heat Transfer 201 | . 36 165 Siege Activations . | . . . Robots Corrupted . | . . . Combat Hostiles . | . . . Parts Fried . | . . . Impact Corruptions . | . . . Robots Melted . | . . . Combat Hostiles . | . . . Parts Melted 1 | . . 1 Heat Transferred 287 | . 137 150 Parts Sabotaged . | . . . Parts Stolen . | . . . Parts Stripped . | . . . Power Chain Reactions . | . . . Missiles Intercepted . | . . . Alert | -11 -10 -9 ------- Run | Jun Mat Mat Peak Influence 260 | . 221 260 Initial 92 | . . 92 Average 153 | . 90 222 Maximum Alert Level 1 | . 1 1 Low Security (%) 43 | 100 83 8 Level 1 56 | . 16 91 Level 2 . | . . . Level 3 . | . . . Level 4 . | . . . Level 5 . | . . . High Security . | . . . Max Security . | . . . Squads Dispatched 3 | . 2 1 Investigation . | . . . Extermination . | . . . Reinforcement 3 | . 2 1 Assault . | . . . Garrison . | . . . Intercept . | . . . Searches Triggered . | . . . Construction Impeded . | . . . Haulers Reinforced . | . . . Active Scanning Responses . | . . . Cargo Convoy Interrupts . | . . . Stealth | -11 -10 -9 --------- Run | Jun Mat Mat Distress Signals 3 | . 1 2 Communications Jammed . | . . . Distress Signals . | . . . Times Spotted 20 | . 10 10 Peak Tracking Total 7 | . 6 7 Tactical Retreats 2 | . 1 1 Traps | -11 -10 -9 ------- Run | Jun Mat Mat Traps Triggered 1 | . 1 . Indirectly . | . . . Trap Hack Attempts . | . . . Triggered . | . . . Disarmed . | . . . Reprogrammed . | . . . Reused . | . . . Traps Extracted . | . . . Installed . | . . . Triggered . | . . . Machines | -11 -10 -9 ---------- Run | Jun Mat Mat Machines Disabled 7 | . 2 5 Max in Single Turn 5 | . 1 5 Machines Repaired . | . . . Machines Sabotaged . | . . . Overloaded Fab Kills . | . . . Hacking | -11 -10 -9 --------- Run | Jun Mat Mat Machines Accessed 3 | . 2 1 Terminals 3 | . 2 1 Fabricators . | . . . Repair Stations . | . . . Recycling Units . | . . . Scanalyzers . | . . . Garrison Access . | . . . Total Hacks 6 | . 4 2 Successful 2 | . 2 . Failed 4 | . 2 2 Catastrophic . | . . . Database Lockouts . | . . . Manual 4 | . 4 . Terminals 6 | . 4 2 Fabricators . | . . . Repair Stations . | . . . Recycling Units . | . . . Scanalyzers . | . . . Garrison Access . | . . . Terminal Hacks . | . . . Fabricator Hacks . | . . . Repair Station Hacks . | . . . Recycling Unit Hacks . | . . . Scanalyzer . | . . . Garrison Access Hacks . | . . . Unauthorized Hacks 2 | . 2 . Terminals 2 | . 2 . Assimilate 1 | . 1 . Botnet 1 | . 1 . Fabricators . | . . . Repair Stations . | . . . Recycling Units . | . . . Scanalyzers . | . . . Garrison Access . | . . . Data Cores Recovered . | . . . Used . | . . . Hacking Detections 3 | . 2 1 Full Trace Events . | . . . Feedback Events . | . . . Feedback Blocked . | . . . Robot Schematics Acquired . | . . . Robots Built . | . . . Authchips . | . . . Time . | . . . Total Robot Build Rating . | . . . Part Schematics Acquired . | . . . Parts Built . | . . . Authchips . | . . . Time . | . . . Total Part Build Rating . | . . . Parts Repaired . | . . . Time . | . . . Parts Recycled . | . . . Recycled Matter . | . . . Retrieved Matter . | . . . Retrieved Components . | . . . Parts Scanalyzed . | . . . Part Schematics Acquired . | . . . Parts Damaged . | . . . Bothacking | -11 -10 -9 ------------ Run | Jun Mat Mat Used RIF Installer . | . . . Robots Hacked . | . . . Non-combat . | . . . Combat . | . . . Robot Hacks Applied . | . . . Relay Couplers Released . | . . . Fabnet Peak Effective % . | . . . Robots Rewired . | . . . Allies Hacked . | . . . Hacks Repelled . | . . . Allies | -11 -10 -9 -------- Run | Jun Mat Mat Total Allies . | . . . Largest Group . | . . . Highest-Rated Group . | . . . Highest-Rated Ally . | . . . Total Orders . | . . . Ally Attacks . | . . . Total Damage . | . . . Kills . | . . . Allies Corrupted . | . . . Allies Melted . | . . . Intel | -11 -10 -9 ------- Run | Jun Mat Mat Robot Analysis Total . | . . . Derelict Logs Recovered . | . . . Drone Launches . | . . . Drone Recoveries . | . . . Exploration | -11 -10 -9 ------------- Run | Jun Mat Mat Turns Passed 349 | 43 110 196 Spaces Moved 325 | 38 103 184 Core 114 | 1 . 113 Treads 71 | . . 71 Legs . | . . . Wheels 140 | 37 103 . Hover . | . . . Flight . | . . . Fastest Speed 50 | 50 80 50 Average Speed 86 | 79 80 92 Slowest Speed 160 | 80 80 160 Overloaded Moves . | . . . Propulsion Burnouts . | . . . Robots Hopped . | . . . Cave-ins Triggered . | . . . Exploration Rate (%) 19 | 4 35 18 Regions Visited 2 Branch Regions . Pre-discovered Areas . | . . . Known Exits Taken . | . . . Unknown Exits Taken 2 | 1 1 . Scrap Searched . | . . . Spaces Dug 4 | . 4 . Terrain Destroyed 46 | . 38 8 Melee . | . . . Projectile . | . . . AOE 46 | . 38 8 Terrain Rammed . | . . . Walls Destroyed . | . . . Machines Disabled . | . . . Actions | -11 -10 -9 --------- Run | Jun Mat Mat Total 371 | 47 117 207 Wait 18 | . 2 16 Move 323 | 37 102 184 Hop . | . . . Pick Up 7 | 4 3 . Fast Attach 6 | 6 . . Attach 4 | . . 4 Detach . | . . . Swap 1 | . 1 . Drop . | . . . Fire 12 | . 9 3 Melee . | . . . Ram . | . . . Kick . | . . . Crush . | . . . Escape Stasis . | . . . Rewire . | . . . Trap . | . . . Miscellaneous . | . . . Route ------- -11/Junkyard -10/Materials -9/Materials History --------- Turn | Location | Event 15 | -11/Junkyard | Discovered new exit (range 15) 44 | -11/Junkyard | Entered Materials 142 | -10/Materials | Discovered new exit (range 16) 154 | -10/Materials | Entered another Materials area 154 | -9/Materials | Evolved 2 slots: Propulsion x2 277 | -9/Materials | Released all parts (4) 280 | -9/Materials | Core integrity fell below 50% 311 | -9/Materials | Build established: Mutant 325 | -9/Materials | Core integrity fell below 20% 350 | -9/Materials | Destroyed by Y-45 Defender with Heavy Assault Rifle Last Messages --------------- 00167_ ALERT: Hostiles spotted, dispatching reinforcements to Terminal M001. 00167_ O-16 Technician locks terminal. 00170_ Fusion Modulator explodes. 00170_ Terminal disabled. 00170_ Destroyed Lgt. Ion Engine. 00170_ O-16 Technician destroyed. 00170_ Fusion Modulator explodes. 00182_ U-05 Engineer lays Concrete. 00228_ Lgt. Treads destroyed. 00253_ Wheel destroyed. 00268_ Connecting with Terminal... 00268_ Current location identified: Materials 00269_ W-16 Scout sends out distress signal. 00277_ Released Sml. Storage Unit. 00277_ Released Lgt. Treads. 00277_ Released Wheel. 00277_ Released Lgt. Assault Rifle. 00289_ W-16 Scout sends out distress signal. 00314_ K-01 Serf collects debris. Map ----- +----------------------------------------------------+ | #?????## #####?????# # """ # | | #?????? #?????# # """"" # | | ##????? == #?????# # """"" # | | "#?????? = ??????# # """"" + | | "#?????? ??????# # """ # | | "#??????? ???????# # # | | "#??????? ?####### ####"###### | | "#########+### ###+### #### | | # | | # | | # | | ########+###########+### ####### # | | ?????????????????? ####### #### ###### | | ??????????????????# # T ## #??# #????? | | ? ???????????????????# # ## #??# #????? | | ??????????????????????# "" # !!!## #??# #????? | | ??????????????????????# """# !! ## #??# #????? | | ??????????????????????# S"# !! # #??# #????? | | ??????????????????????# # ## #??# #????? | | ????????????????????######### [## ????# #????? | | ????????????????????#] YY###+####+####### #????? | | ????????????????????# g/ #????? | | ????????????????????# g########+#########????? | | ????????????????????# #???# #??????????? | | ????????????????????# #???# """ #??????????? | | ????????????????????# @ #???# """ #??????????? | | ????????????????????########???# """ #??????????? | | ???????????????????????????????# #??????????? | | ???????????????????????????????# #??????????? | | ???????????????????????????????########??????????? | | ?????????????????????????????????????????????????? | | ?????????????????????????????????????????????????? | | ?????????????????????????????????????????????????? | | ?????????????????????????????????????????????????? | | ?????????????????????????????????????????????????? | | ?????????????????????????????????????????????????? | | ?????????????????????????????????????????????????? | | ?????????????????????????????????????????????????? | | ?????????????????????????????????????????????????? | | ?????????????????????????????????????????????????? | | ?????????????????????????????????????????????????? | | ?????????????????????????????????????????????????? | | ?????????????????????????????????????????????????? | | ?????????????????????????????????????????????????? | | ?????????????????????????????????????????????????? | | ?????????????????????????????????????????????????? | | ?????????????????????????????????????????????????? | | ?????????????????????????????????????????????????? | | ?????????????????????????????????????????????????? | | ?????????????????????????????????????????????????? | +----------------------------------------------------+ Best States ------------- Heat Dissipation 28 Energy Generation 10 Energy Capacity 125 Matter Stores 210 Matter Capacity 300 Sight Range 16 Terrain Scan Density 10 Evasion (%) 50 Recoil Reduction 2 Item Schematics ----------------- None Robot Schematics ------------------ None Fabricated ------------ Nothing Alien Tech Used ----------------- None Achievements -------------- None Challenges ------------ None Game ------ Seed WeightBombardmentThrower Manual? 0 Play Time 00:07:40 Cumulative 21.2 hours Start 2024.02.12 @ 02:37:35 End 2024.02.12 @ 02:43:04 Sessions 1 Manual Loads 0 Difficulty Rogue Special Mode None Game No. 26 Rogue 26 Adventurer 0 Explorer 0 Win Type - Total 0 Types 0/0/0/0/0/0/0/0/0 Lore% 31 Gallery% 32 Achievement% 37 Wizard Run 0 Options --------- ASCII 0 Keyboard 0 Movement Mouse Keybinds 0 Fullscreen 1 Font 18/SmallcapsGlow Map View 76x50 Tactical HUD 1 Map Filters NONE Filters NONE Steam 0 RUN: 553dd2c3-7196-42a7-9895-0c98ea43d7df